[Event "Germany Countries-chT Youth 2022"]
[Site "Wiesbaden"]
[Date "2022.10.03"]
[Round "5"]
[White "Voigt, Anastasia"]
[Black "Woerz, Ann-Sophie"]
[Result "1-0"]
[ECO "C41"]
[WhiteElo "1772"]
[BlackElo "1607"]
[Annotator "COMBH"]
[PlyCount "85"]
[EventDate "2022.09.28"]
[EventType "team-tourn"]
[EventRounds "7"]
[EventCountry "GER"]
[TimeControl "40/5400+30:1800+30"]

1. e4 {[%emt 0:00:02]} d6 {[%emt 0:00:05]} 2. d4 {[%emt 0:00:03]} Nf6 {[%emt 0:00:04]} 3. Nc3 {[%emt 0:00:07]} e5 {[%emt 0:00:14]} 4. Nf3 {[%emt 0:00:05]} Nbd7 {[%emt 0:00:18]} 5. Bc4 {[%emt 0:00:11]} Be7 {[%emt 0:00:06]} 6. O-O {[%emt 0:00:53]} O-O {[%emt 0:00:14]} 7. Re1 {[%emt 0:02:30]} a6 {[%emt 0:01:06]} 8. a4 {[%emt 0:00:23]} b6 {[%emt 0:00:14]} 9. b4 {[%emt 0:23:27]} Bb7 {[%emt 0:01:32]} 10. Ba3 {[%emt 0:00:59]} h6 {[%emt 0:03:19]} 11. Qd3 {[%emt 0:05:25]} Nh5 {[%emt 0:02:40]} 12. Ne2 {[%emt 0:02:28]} exd4 {[%emt 0:08:49]} 13. Nexd4 {[%emt 0:01:38]} Bf6 {[%emt 0:05:26]} 14. Rad1 {[%emt 0:02:58]} Ne5 {[%emt 0:02:02]} 15. Nxe5 {[%emt 0:02:07]} dxe5 {[%emt 0:09:01]} 16. Nf5 {[%emt 0:01:00]} Qxd3 {[%emt 0:00:58]} 17. Rxd3 {[%emt 0:00:44]} Nf4 {[%emt 0:01:55]} 18. Rd7 {[%emt 0:00:58]} Bc6 {[%emt 0:06:15]} 19. Rxc7 {[%emt 0:01:21]} Rac8 {[%emt 0:03:10]} 20. Bxf7+ {[%emt 0:01:44]} Kh7 {[%emt 0:02:43]} 21. Rxc8 {[%emt 0:01:04]} Rxc8 {[%emt 0:00:33]} 22. Bb3 {[%emt 0:00:38]} Rd8 {[%emt 0:03:33]} 23. h3 {[%emt 0:01:05]} g6 {[%emt 0:01:41]} 24. Ne3 {[%emt 0:06:38]} h5 {[%emt 0:06:37]} 25. f3 {[%emt 0:03:31]} Bh4 {[%emt 0:06:33]} 26. Rd1 {[%emt 0:03:11]} Ne2+ {[%emt 0:02:50]} 27. Kh1 {[%emt 0:02:31]} Rxd1+ {[%emt 0:10:09]} 28. Nxd1 {[%emt 0:00:09]} Kh6 {[%emt 0:00:54]} 29. Bb2 {[%emt 0:03:33]} Ng3+ {[%emt 0:03:48]} 30. Kh2 {[%emt 0:00:16]} Nf1+ {[%emt 0:06:07]} 31. Kg1 {[%emt 0:00:06]} Nd2 {[%emt 0:00:21]} 32. Bxe5 {[%emt 0:00:32]} Nxb3 {[%emt 0:00:39]} 33. cxb3 {[%emt 0:00:15]} Be7 {[%emt 0:01:21]} 34. Bc3 {[%emt 0:00:54]} Bd7 {[%emt 0:00:31]} 35. Ne3 {[%emt 0:01:17]} b5 {[%emt 0:02:53]} 36. Nd5 {[%emt 0:02:31]} Bd8 {[%emt 0:01:35]} 37. a5 {[%emt 0:00:30]} Be6 {[%emt 0:01:54]} 38. Kf2 {[%emt 0:00:34]} g5 {[%emt 0:01:47]} 39. Ke3 {[%emt 0:01:28]} g4 {[%emt 0:02:47]} 40. hxg4 {[%emt 0:00:31]} hxg4 {[%emt 0:00:44]} 41. f4 {[%emt 0:32:00]} Kh5 {[%emt 0:32:17]} 42. g3 {[%emt 0:00:35]} Bf7 {[%emt 0:00:00]} 43. Kd4 1-0

[Event "Germany Countries-chT Youth 2022"]
[Site "Wiesbaden"]
[Date "2022.10.03"]
[Round "5"]
[White "Mader, Fabian"]
[Black "Besou, Hussain"]
[Result "0-1"]
[ECO "B51"]
[WhiteElo "1735"]
[BlackElo "2119"]
[Annotator "TA"]
[PlyCount "78"]
[EventDate "2022.09.28"]
[EventType "team-tourn"]
[EventRounds "7"]
[EventCountry "GER"]
[TimeControl "40/5400+30:1800+30"]

{[%evp 9,78,14,28,15,22,17,20,25,18,15,24,15,20,20,23,18,46,-114,-108,-152,-70,-60,0,-13,0,0,0,0,0,0,10,0,0,-12,0,-13,0,-26,-16,-73,-71,-75,-75,-112,-62,-58,0,0,0,-8,8,0,98,26,15,0,15,6,121,-25,-16,-906,-909,-3136,-2845,-2357,-1621,-4934,-2303,-29990,-29987]} 1. e4 {[%emt 0:00:04]} c5 {[%emt 0:00:10]} 2. Nf3 {[%emt 0:00:09]} d6 {[%emt 0:00:06]} 3. Bb5+ {[%emt 0:00:14]} Nd7 {[%emt 0:00:15]} 4. O-O {[%emt 0:00:23]} a6 {[%emt 0:00:41]} 5. Bd3 {[%emt 0:01:27]} Ngf6 {[%emt 0:01:18]} 6. Qe2 {[%emt 0:02:06] B51: Sicilian: Moscow Variation (3 Bb5+) without 3...Bd7.} e5 {[%emt 0:08:00]} 7. c3 {[%emt 0:07:25]} Be7 {[%emt 0:01:00]} 8. Bc2 {[%emt 0:03:40] The position is equal.} O-O {[%emt 0:01:07]} 9. d4 {[%emt 0:04:57]} Qc7 {[%emt 0:10:11] [#]} 10. h3 $146 {[%emt 0:06:39]} ({Predecessor:} 10. Bg5 Re8 11. dxe5 dxe5 12. a4 b6 13. Bxf6 Nxf6 14. Nbd2 Bf8 15. Bd3 Bb7 16. Bc4 {1-0 (79) Megaranto,S (2523)-Nasanjargal,U (2482) Ulaanbaatar 2019}) 10... Re8 {[%emt 0:03:39]} 11. d5 {[%emt 0:09:23]} b5 {[%emt 0:04:28]} 12. Nh2 {[%emt 0:06:59]} Bf8 {[%emt 0:12:12]} 13. f4 $2 {[%emt 0:06:47]} (13. a4 $14 {stays ahead.}) 13... exf4 $1 $17 {[%emt 0:01:57]} 14. Qf3 {[%emt 0:11:12]} Ne5 {[%emt 0:03:37] Black is more active.} (14... g5 $1 $17 {aiming for ...Ne5.} 15. g3 Ne5) 15. Qxf4 $15 {[%emt 0:00:26]} Qe7 {[%emt 0:08:18]} ({Reject} 15... c4 16. Be3 $11) (15... b4 $15) 16. Nd2 {[%emt 0:04:05]} Ng6 {[%emt 0:02:47]} 17. Qf2 {[%emt 0:03:00]} Ra7 {[%emt 0:05:44]} 18. b3 {[%emt 0:05:56]} Rc7 {[%emt 0:01:46]} 19. Bb2 {[%emt 0:06:18]} Ne5 {[%emt 0:02:13]} 20. Nhf3 {[%emt 0:02:16]} Nfd7 {[%emt 0:01:24][%cal Bf6d7,Bd7e5,Be5f3][%mdl 32]} 21. Rae1 {[%emt 0:02:24]} g6 {[%emt 0:02:51]} 22. Ba1 {[%emt 0:06:26]} c4 {[%emt 0:04:16]} 23. Nxe5 {[%emt 0:02:08]} Nxe5 {[%emt 0:00:10]} 24. Nf3 {[%emt 0:00:17]} (24. bxc4 $11 bxc4 25. Nf3) 24... Nxf3+ $17 {[%emt 0:01:09]} 25. Qxf3 {[%emt 0:00:15]} Bg7 {[%emt 0:00:10]} 26. Rf2 {[%emt 0:02:37] [#]} cxb3 {[%emt 0:08:38]} (26... f5 $1 $17) 27. axb3 $15 {[%emt 0:01:17]} h5 {[%emt 0:01:51]} (27... f5 $15) 28. Ref1 $11 {[%emt 0:03:36]} Be5 {[%emt 0:00:51]} 29. Kh1 {[%emt 0:01:27]} h4 {[%emt 0:00:23]} 30. Qe3 {[%emt 0:00:25]} Kg7 {[%emt 0:00:36]} (30... f5 $11) 31. Rf3 {[%emt 0:01:02]} (31. Rxf7+ $16 Qxf7 32. Rxf7+ Rxf7 33. Bd3) 31... Rf8 {[%emt 0:00:48]} 32. Qf2 {[%emt 0:00:37]} Rc5 {[%emt 0:01:03]} 33. Bb2 {[%emt 0:00:23]} a5 {[%emt 0:00:46] [#]} (33... f6 $11 {keeps the balance.}) 34. Bc1 {[%emt 0:00:36]} ({White should play} 34. Bd3 $1 $16) 34... Rxc3 {[%emt 0:01:17]} 35. Bg5 $2 {[%emt 0:00:18][%mdl 8192] White does not recover from this.} Qxg5 $19 {[%emt 0:00:21]} 36. Rxf7+ {[%emt 0:00:21]} Rxf7 {[%emt 0:00:04]} 37. Qxf7+ {[%emt 0:00:05]} Kh6 {[%emt 0:00:04]} 38. Bd1 {[%emt 0:00:55] [#]} Bxh3 $1 {[%emt 0:00:21][%csl Gh3][%cal Rg5g2]} 39. Bf3 {[%emt 0:00:50]} (39. Qf2 Bg4) 39... Rc1 {[%emt 0:01:35] Weighted Error Value: White=0.97/Black=0.21 (precise)} 0-1

[Event "Germany Countries-chT Youth 2022"]
[Site "Wiesbaden"]
[Date "2022.10.03"]
[Round "5"]
[White "Wylie, Leonard"]
[Black "Pohle, Saskia"]
[Result "0-1"]
[ECO "C44"]
[WhiteElo "1721"]
[BlackElo "1756"]
[Annotator "COMBH"]
[PlyCount "86"]
[EventDate "2022.09.28"]
[EventType "team-tourn"]
[EventRounds "7"]
[EventCountry "GER"]
[TimeControl "40/5400+30:1800+30"]

1. e4 {[%emt 0:00:03]} e5 {[%emt 0:00:03]} 2. Nf3 {[%emt 0:00:07]} Nc6 {[%emt 0:00:04]} 3. d4 {[%emt 0:00:27]} exd4 {[%emt 0:00:06]} 4. Nxd4 {[%emt 0:00:07]} Nf6 {[%emt 0:00:17]} 5. Nc3 {[%emt 0:00:08]} Bb4 {[%emt 0:00:27]} 6. Bg5 {[%emt 0:01:07]} h6 {[%emt 0:03:24]} 7. Nxc6 {[%emt 0:02:18]} bxc6 {[%emt 0:00:13]} 8. Bd2 {[%emt 0:00:19]} O-O {[%emt 0:05:30]} 9. Bd3 {[%emt 0:07:48]} d5 {[%emt 0:04:02]} 10. e5 {[%emt 0:02:46]} Re8 {[%emt 0:01:39]} 11. f4 {[%emt 0:00:38]} Ng4 {[%emt 0:14:06]} 12. Na4 {[%emt 0:09:58]} Bxd2+ {[%emt 0:04:14]} 13. Qxd2 {[%emt 0:00:13]} Nxe5 {[%emt 0:00:48]} 14. fxe5 {[%emt 0:01:44]} Qh4+ {[%emt 0:00:27]} 15. Qf2 {[%emt 0:00:24]} Rxe5+ {[%emt 0:01:58]} 16. Be2 {[%emt 0:01:38]} Qxa4 {[%emt 0:04:19]} 17. O-O {[%emt 0:05:12]} Be6 {[%emt 0:02:51]} 18. Bd3 {[%emt 0:01:26]} Qb4 {[%emt 0:04:10]} 19. c3 {[%emt 0:02:09]} Qb6 {[%emt 0:01:56]} 20. b4 {[%emt 0:02:11]} Qxf2+ {[%emt 0:08:32]} 21. Kxf2 {[%emt 0:00:17]} Bf5 {[%emt 0:00:44]} 22. Bxf5 {[%emt 0:00:31]} Rxf5+ {[%emt 0:00:06]} 23. Ke3 {[%emt 0:00:09]} Re8+ {[%emt 0:00:20]} 24. Kd3 {[%emt 0:00:14]} Rfe5 {[%emt 0:03:25]} 25. Rf2 {[%emt 0:00:28]} f6 {[%emt 0:07:47]} 26. Rd1 {[%emt 0:01:32]} Kf7 {[%emt 0:02:07]} 27. Kc2 {[%emt 0:06:10]} Re2+ {[%emt 0:05:20]} 28. Rd2 {[%emt 0:00:32]} Rxf2 {[%emt 0:01:12]} 29. Rxf2 {[%emt 0:00:18]} Ke6 {[%emt 0:00:29]} 30. Kb3 {[%emt 0:00:07]} Kd6 {[%emt 0:00:06]} 31. Ka4 {[%emt 0:00:17]} Re3 {[%emt 0:00:38]} 32. Rc2 {[%emt 0:00:08]} Rd3 {[%emt 0:02:00]} 33. c4 {[%emt 0:01:00]} d4 {[%emt 0:01:38]} 34. c5+ {[%emt 0:00:29]} Kd5 {[%emt 0:00:23]} 35. b5 {[%emt 0:00:54]} Rc3 {[%emt 0:02:49]} 36. Rd2 {[%emt 0:02:10]} Kxc5 {[%emt 0:01:47]} 37. bxc6 {[%emt 0:00:18]} d3 {[%emt 0:00:10]} 38. a3 {[%emt 0:00:19]} Kc4 {[%emt 0:01:22]} 39. g4 {[%emt 0:00:41]} Rc2 {[%emt 0:00:55]} 40. Rd1 {[%emt 0:00:08]} d2 {[%emt 0:00:56]} 41. Ka5 {[%emt 0:30:08]} Kd3 {[%emt 0:30:43]} 42. Ka6 {[%emt 0:00:12]} Rxc6+ {[%emt 0:00:28]} 43. Kxa7 {[%emt 0:00:17]} Rc1 {[%emt 0:00:15]} 0-1

[Event "Germany Countries-chT Youth 2022"]
[Site "Wiesbaden"]
[Date "2022.10.03"]
[Round "5"]
[White "Wilmink, Anna"]
[Black "Prinzen, Siri Marleen"]
[Result "0-1"]
[ECO "B13"]
[WhiteElo "1702"]
[BlackElo "1719"]
[Annotator "NA RC COMBH"]
[PlyCount "147"]
[EventDate "2022.09.28"]
[EventType "team-tourn"]
[EventRounds "7"]
[EventCountry "GER"]
[SourceTitle "playchess.com"]
[Source "ChessBase"]
[SourceQuality "1"]
[TimeControl "40/5400+30:1800+30"]

1. e4 {[%emt 0:00:02]} c6 {[%emt 0:00:06]} 2. d4 {[%emt 0:00:30]} d5 {[%emt 0:00:06]} 3. exd5 {[%emt 0:00:32]} cxd5 {[%emt 0:00:07]} 4. Nf3 {[%emt 0:01:08]} Nc6 {[%emt 0:00:53]} 5. c3 {[%emt 0:00:42]} Qc7 {[%emt 0:00:49]} 6. Be2 {[%emt 0:04:55]} Nf6 {[%emt 0:01:18]} 7. O-O {[%emt 0:00:56]} e6 {[%emt 0:01:33]} 8. h3 {[%emt 0:02:01]} Bd6 {[%emt 0:01:37]} 9. Be3 {[%emt 0:02:41]} O-O {[%emt 0:01:44]} 10. Bd3 {[%emt 0:05:28]} Bd7 {[%emt 0:06:17]} 11. Re1 {[%emt 0:02:26]} a6 {[%emt 0:04:00]} 12. Qc1 {[%emt 0:02:56]} Nh5 {[%emt 0:09:18]} 13. Ng5 {[%emt 0:11:52]} g6 {[%emt 0:06:04]} 14. Nf3 {[%emt 0:04:28]} Bf4 {[%emt 0:06:53]} 15. Bxf4 {[%emt 0:02:01]} Qxf4 {[%emt 0:02:36]} 16. Qxf4 {[%emt 0:02:29]} Nxf4 {[%emt 0:00:01]} 17. Bc2 {[%emt 0:01:24]} Nh5 {[%emt 0:03:48]} 18. Nbd2 {[%emt 0:01:20]} Rfc8 {[%emt 0:01:14]} 19. Nb3 {[%emt 0:02:34]} b6 {[%emt 0:04:43]} 20. Bd3 {[%emt 0:03:35]} Ng7 {[%emt 0:02:41]} 21. a4 {[%emt 0:02:40]} Rcb8 {[%emt 0:07:11]} 22. Nbd2 {[%emt 0:02:17]} Ne8 {[%emt 0:03:03]} 23. b4 {[%emt 0:02:12]} Nd6 {[%emt 0:02:51]} 24. Nb3 {[%emt 0:03:02]} Rc8 {[%emt 0:04:32]} 25. Rec1 {[%emt 0:03:10]} Ne7 {[%emt 0:04:04]} 26. Ne5 {[%emt 0:05:12]} Be8 {[%emt 0:01:36]} 27. c4 {[%emt 0:07:20]} dxc4 {[%emt 0:01:12]} 28. Nxc4 {[%emt 0:00:58]} Nxc4 {[%emt 0:00:10]} 29. Rxc4 {[%emt 0:02:37]} Rxc4 {[%emt 0:04:11]} 30. Bxc4 {[%emt 0:00:08]} Bc6 {[%emt 0:00:33]} 31. f3 {[%emt 0:12:16]} Bd5 {[%emt 0:01:18]} 32. Rc1 {[%emt 0:02:57]} Bxc4 {[%emt 0:01:42]} 33. Rxc4 {[%emt 0:00:14]} Nd5 {[%emt 0:00:10]} 34. b5 {[%emt 0:01:22]} axb5 {[%emt 0:01:28]} 35. axb5 {[%emt 0:00:36]} Ra3 {[%emt 0:00:52]} 36. Nd2 {[%emt 0:01:48]} Ra5 {[%emt 0:02:13]} 37. Ne4 {[%emt 0:04:03]} Rxb5 {[%emt 0:01:32]} 38. Nc3 {[%emt 0:01:20]} Nxc3 {[%emt 0:03:15]} 39. Rxc3 {[%emt 0:00:06]} Kf8 {[%emt 0:05:56]} 40. Rc7 {[%emt 0:00:47]} Rb2 {[%emt 0:02:29]} 41. g4 {[%emt 0:31:03]} g5 {[%emt 0:31:01]} 42. Rb7 {[%emt 0:00:37]} Kg7 {[%emt 0:00:56]} 43. Kf1 {[%emt 0:00:00]} Kg6 {[%emt 0:00:00]} 44. Rb8 {[%emt 0:00:00]} h6 {[%emt 0:00:00]} 45. Re8 {[%emt 0:00:00]} b5 {[%emt 0:00:00]} 46. Rb8 {[%emt 0:00:00]} b4 {[%emt 0:00:00]} 47. Ke1 {[%emt 0:00:00]} b3 {[%emt 0:00:00]} 48. Kd1 {[%emt 0:00:00]} Rb1+ {[%emt 0:00:00]} 49. Kd2 {[%emt 0:00:00]} Kf6 {[%emt 0:00:00]} 50. Rb7 {[%emt 0:00:00]} Rb2+ {[%emt 0:00:00]} 51. Kc1 {[%emt 0:00:00]} Rc2+ {[%emt 0:00:00]} 52. Kd1 {[%emt 0:00:00]} Rc3 {[%emt 0:00:00]} 53. Ke2 {[%emt 0:00:00]} Kg7 {[%emt 0:00:00]} 54. Rb8 {[%emt 0:00:00]} Kg6 {[%emt 0:00:00]} 55. Rb6 {[%emt 0:00:00]} Kg7 {[%emt 0:00:00]} 56. Rb8 {[%emt 0:00:00]} f6 {[%emt 0:00:00]} 57. Rb6 {[%emt 0:00:00]} Kf7 {[%emt 0:00:00]} 58. Rb7+ {[%emt 0:00:00]} Ke8 {[%emt 0:00:00]} 59. Rb8+ {[%emt 0:00:00]} Kd7 {[%emt 0:00:00]} 60. Rb6 {[%emt 0:00:00]} Ke7 {[%emt 0:00:00]} 61. Rb7+ {[%emt 0:00:00]} Kd6 {[%emt 0:00:00]} 62. Rb5 {[%emt 0:00:23]} Kc6 {[%emt 0:00:00]} 63. Rb8 {[%emt 0:00:47]} Kd5 {[%emt 0:00:00]} 64. Rb4 {[%emt 0:01:00]} e5 {[%emt 0:00:37]} 65. dxe5 {[%emt 0:00:55]} fxe5 {[%emt 0:00:39]} 66. Rb6 {[%emt 0:02:36]} Kc4 {[%emt 0:01:27]} 67. Rb8 {[%emt 0:03:00]} Rc2+ {[%emt 0:00:34]} 68. Kd1 {[%emt 0:00:19]} Kc3 {[%emt 0:00:20]} 69. Rc8+ {[%emt 0:03:24]} Kb2 {[%emt 0:00:23]} 70. Rb8 {[%emt 0:01:07]} Ka2 {[%emt 0:00:27]} 71. Ra8+ {[%emt 0:00:32]} Kb1 {[%emt 0:01:06]} 72. Rb8 {[%emt 0:00:06]} Rc3 {[%emt 0:03:15]} 73. Kd2 {[%emt 0:00:46]} Rxf3 {[%emt 0:00:45]} 74. Re8 {[%emt 0:00:49]} 0-1

[Event "Germany Countries-chT Youth 2022"]
[Site "Wiesbaden"]
[Date "2022.10.03"]
[Round "5"]
[White "Nechitailo, Nikita"]
[Black "Wunderlich, Elias"]
[Result "1-0"]
[ECO "C02"]
[WhiteElo "1651"]
[BlackElo "1815"]
[Annotator "NA RC COMBH"]
[PlyCount "119"]
[EventDate "2022.09.28"]
[EventType "team-tourn"]
[EventRounds "7"]
[EventCountry "GER"]
[SourceTitle "playchess.com"]
[Source "ChessBase"]
[SourceQuality "1"]
[TimeControl "40/5400+30:1800+30"]

1. e4 {[%emt 0:00:02]} e6 {[%emt 0:00:04]} 2. d4 {[%emt 0:00:03]} d5 {[%emt 0:00:04]} 3. e5 {[%emt 0:00:04]} c5 {[%emt 0:00:04]} 4. c3 {[%emt 0:00:03]} Nc6 {[%emt 0:00:03]} 5. Nf3 {[%emt 0:00:04]} Qb6 {[%emt 0:00:06]} 6. Bd3 {[%emt 0:00:04]} Bd7 {[%emt 0:00:28]} 7. dxc5 {[%emt 0:00:21]} Bxc5 {[%emt 0:00:13]} 8. O-O {[%emt 0:00:08]} a5 {[%emt 0:00:41]} 9. Nbd2 {[%emt 0:02:03]} Qa7 {[%emt 0:02:59]} 10. c4 {[%emt 0:04:34]} Nge7 {[%emt 0:04:19]} 11. g3 {[%emt 0:12:41]} (11. h3 $11) 11... O-O-O {[%emt 0:04:30]} ({Black should try} 11... h6 $15) 12. a3 {[%emt 0:02:15]} Ng6 {[%emt 0:02:54]} 13. Bxg6 {[%emt 0:05:42]} hxg6 {[%emt 0:00:30] [#]} 14. b4 $1 {[%emt 0:00:03]} axb4 {[%emt 0:03:32]} 15. Nb3 {[%emt 0:00:07]} bxa3 {[%emt 0:33:22]} 16. Nxc5 {[%emt 0:00:43]} Qxc5 {[%emt 0:00:05]} 17. Bxa3 {[%emt 0:00:06]} Qxc4 {[%emt 0:01:57]} 18. Bd6 {[%emt 0:00:21]} b6 {[%emt 0:07:10]} 19. Ng5 {[%emt 0:05:18]} Be8 {[%emt 0:10:07]} 20. Ra4 {[%emt 0:04:18]} Qb5 {[%emt 0:02:47]} 21. Qc2 {[%emt 0:03:37]} Rxd6 {[%emt 0:05:55]} 22. exd6 {[%emt 0:03:52]} Qc5 {[%emt 0:01:08]} 23. Qb2 {[%emt 0:09:06]} Qxd6 {[%emt 0:06:11]} 24. Qxb6 {[%emt 0:00:44]} Qc7 {[%emt 0:03:45]} 25. Ra8+ {[%emt 0:00:22]} Kd7 {[%emt 0:01:33]} 26. Qc5 {[%emt 0:00:20]} Rh5 {[%emt 0:01:28]} 27. f4 Qd6 {[%emt 0:00:56]} 28. Qxd6+ {[%emt 0:04:51]} Kxd6 {[%emt 0:00:03]} 29. Rxe8 {[%emt 0:00:04]} f6 {[%emt 0:01:10]} 30. Nf7+ {[%emt 0:07:43]} Kd7 {[%emt 0:00:30]} 31. Rh8 {[%emt 0:00:00]} Ke7 {[%emt 0:01:16]} 32. Rxh5 {[%emt 0:00:04]} gxh5 {[%emt 0:00:02]} 33. Nh8 {[%emt 0:00:01]} Nd4 {[%emt 0:00:48]} 34. Ng6+ {[%emt 0:00:21]} Kd6 {[%emt 0:00:15]} 35. Kf2 {[%emt 0:00:26]} Nf5 {[%emt 0:02:20]} 36. Nh4 {[%emt 0:00:13]} Ne7 {[%emt 0:00:22]} 37. Ra1 {[%emt 0:00:57]} d4 {[%emt 0:00:43]} 38. Ra7 {[%emt 0:01:30]} Nd5 {[%emt 0:00:51]} 39. Nf3 {[%emt 0:00:08]} Kc5 $18 {[%emt 0:00:40]} 40. Ra5+ {[%emt 0:00:36]} Kb4 {[%emt 0:00:10]} 41. Rxd5 {[%emt 0:30:35]} exd5 {[%emt 0:30:06]} 42. Nxd4 {[%emt 0:00:03]} Kc3 {[%emt 0:00:26]} 43. Ke3 {[%emt 0:00:07]} g6 {[%emt 0:00:26]} 44. h4 {[%emt 0:00:43]} Kc4 {[%emt 0:00:45]} 45. g4 {[%emt 0:02:04]} hxg4 {[%emt 0:00:33]} 46. f5 {[%emt 0:00:02]} gxf5 {[%emt 0:01:32]} 47. h5 {[%emt 0:00:03]} f4+ {[%emt 0:00:15]} 48. Kxf4 {[%emt 0:00:08]} Kxd4 {[%emt 0:00:15]} 49. h6 {[%emt 0:00:11]} g3 {[%emt 0:00:00]} 50. Kxg3 {[%emt 0:00:00]} Ke3 {[%emt 0:00:00]} 51. h7 {[%emt 0:00:00]} f5 {[%emt 0:00:00]} 52. h8=Q {[%emt 0:00:00]} f4+ {[%emt 0:00:00]} 53. Kg2 {[%emt 0:00:00]} f3+ {[%emt 0:00:00]} 54. Kg3 {[%emt 0:00:00]} d4 {[%emt 0:00:00]} 55. Qe5+ {[%emt 0:00:00]} Kd3 {[%emt 0:00:00]} 56. Kxf3 {[%emt 0:00:00]} Kc4 {[%emt 0:00:00]} 57. Ke4 {[%emt 0:00:00]} d3 {[%emt 0:00:00]} 58. Qd5+ {[%emt 0:00:00]} Kb4 {[%emt 0:00:00]} 59. Kxd3 {[%emt 0:00:00]} Ka4 {[%emt 0:00:00]} 60. Kc3 {[%emt 0:00:00]} 1-0

[Event "Germany Countries-chT Youth 2022"]
[Site "Wiesbaden"]
[Date "2022.10.03"]
[Round "5"]
[White "Bezsonna, Polina"]
[Black "Czaeczine, Paula"]
[Result "1-0"]
[ECO "C55"]
[WhiteElo "1649"]
[BlackElo "1322"]
[Annotator "COMBH"]
[PlyCount "79"]
[EventDate "2022.09.28"]
[EventType "team-tourn"]
[EventRounds "7"]
[EventCountry "GER"]
[TimeControl "40/5400+30:1800+30"]

1. e4 {[%emt 0:00:06]} e5 {[%emt 0:00:06]} 2. Nf3 {[%emt 0:00:06]} Nc6 {[%emt 0:00:06]} 3. d4 {[%emt 0:00:19]} exd4 {[%emt 0:00:08]} 4. Bc4 {[%emt 0:00:24]} Nf6 {[%emt 0:00:09]} 5. e5 {[%emt 0:00:22]} d5 {[%emt 0:00:17]} 6. Bb5 {[%emt 0:00:28]} Ne4 {[%emt 0:00:41]} 7. Nxd4 {[%emt 0:00:29]} Bd7 {[%emt 0:00:15]} 8. Bxc6 {[%emt 0:00:27]} bxc6 {[%emt 0:00:08]} 9. O-O {[%emt 0:02:11]} Bc5 {[%emt 0:00:56]} 10. f3 {[%emt 0:01:49]} Ng5 {[%emt 0:00:32]} 11. f4 {[%emt 0:00:35]} Ne4 {[%emt 0:00:29]} 12. Be3 {[%emt 0:00:44]} O-O {[%emt 0:00:59]} 13. Nd2 {[%emt 0:00:46]} Nxd2 {[%emt 0:10:53]} 14. Qxd2 {[%emt 0:00:12]} Qe7 {[%emt 0:04:07]} 15. Rae1 {[%emt 0:02:26]} Bb6 {[%emt 0:11:12]} 16. c3 {[%emt 0:04:16]} Rad8 {[%emt 0:08:01]} 17. f5 {[%emt 0:04:07]} f6 {[%emt 0:14:03]} 18. exf6 {[%emt 0:07:11]} Qxf6 {[%emt 0:06:21]} 19. Bg5 {[%emt 0:02:16]} Qf7 {[%emt 0:02:56]} 20. Bxd8 {[%emt 0:13:03]} Rxd8 {[%emt 0:00:14]} 21. Kh1 {[%emt 0:03:43]} Bxd4 {[%emt 0:09:10]} 22. Qxd4 {[%emt 0:02:43]} a6 {[%emt 0:07:14]} 23. f6 {[%emt 0:02:10]} Rf8 {[%emt 0:03:06]} 24. Rf3 {[%emt 0:03:06]} gxf6 {[%emt 0:02:48]} 25. Ref1 {[%emt 0:06:44]} Qe7 {[%emt 0:04:14]} 26. Rxf6 {[%emt 0:02:13]} Rxf6 {[%emt 0:01:19]} 27. Qxf6 {[%emt 0:00:16]} Qxf6 {[%emt 0:01:23]} 28. Rxf6 {[%emt 0:00:07]} Kg7 {[%emt 0:00:45]} 29. Rf4 {[%emt 0:00:22]} Kg6 {[%emt 0:01:39]} 30. Kg1 {[%emt 0:00:20]} h5 {[%emt 0:03:16]} 31. Kf2 {[%emt 0:00:14]} Bf5 {[%emt 0:00:36]} 32. Rb4 {[%emt 0:01:12]} Kf6 {[%emt 0:04:17]} 33. Rb7 {[%emt 0:01:07]} Ke6 {[%emt 0:01:22]} 34. Rxc7 {[%emt 0:00:38]} Kd6 {[%emt 0:00:17]} 35. Ra7 {[%emt 0:00:34]} Bd3 {[%emt 0:00:36]} 36. Ke3 {[%emt 0:01:55]} Bf1 {[%emt 0:01:05]} 37. g3 {[%emt 0:00:42]} c5 {[%emt 0:01:03]} 38. Rh7 {[%emt 0:00:47]} Bc4 {[%emt 0:01:34]} 39. b3 {[%emt 0:00:42]} Bb5 {[%emt 0:00:31]} 40. Rxh5 1-0

[Event "Germany Countries-chT Youth 2022"]
[Site "Wiesbaden"]
[Date "2022.10.03"]
[Round "5"]
[White "Stichter, Constantin Paul"]
[Black "Nizamova, Rita"]
[Result "1/2-1/2"]
[ECO "B23"]
[WhiteElo "1620"]
[BlackElo "1813"]
[Annotator "COMBH"]
[PlyCount "61"]
[EventDate "2022.09.28"]
[EventType "team-tourn"]
[EventRounds "7"]
[EventCountry "GER"]
[TimeControl "40/5400+30:1800+30"]

1. e4 {[%emt 0:00:01]} c5 {[%emt 0:00:04]} 2. Nc3 {[%emt 0:00:05]} a6 {[%emt 0:00:03]} 3. g3 {[%emt 0:02:36]} b5 {[%emt 0:00:09]} 4. Bg2 {[%emt 0:00:19]} Bb7 {[%emt 0:00:21]} 5. Nge2 {[%emt 0:00:35]} e6 {[%emt 0:00:38]} 6. O-O {[%emt 0:00:43]} Nc6 {[%emt 0:04:16]} 7. d3 {[%emt 0:03:16]} Be7 {[%emt 0:09:39]} 8. f4 {[%emt 0:04:46]} h5 {[%emt 0:02:48]} 9. Qe1 {[%emt 0:07:05]} (9. h3 $14) 9... Nh6 {[%emt 0:03:46]} 10. f5 {[%emt 0:13:32]} Qb6 {[%emt 0:25:21]} 11. Nd1 {[%emt 0:20:06]} O-O-O {[%emt 0:03:06]} (11... Ng4 $1 $15) 12. Nf4 {[%emt 0:11:40]} Nd4 {[%emt 0:09:57]} 13. Ne3 {[%emt 0:11:23]} Ng4 {[%emt 0:08:24]} 14. Nxg4 {[%emt 0:06:51]} hxg4 {[%emt 0:00:02]} 15. Qf2 {[%emt 0:03:20]} Rh7 {[%emt 0:07:14]} 16. c3 {[%emt 0:01:29]} Nf3+ $1 {[%emt 0:00:06]} 17. Bxf3 {[%emt 0:00:09]} gxf3 {[%emt 0:00:03]} 18. Qxf3 {[%emt 0:01:30]} exf5 $14 {[%emt 0:00:34]} 19. Nd5 {[%emt 0:01:04]} Bxd5 {[%emt 0:00:02]} 20. exd5 {[%emt 0:00:05]} Rdh8 {[%emt 0:02:11]} 21. Rf2 {[%emt 0:00:20]} Qg6 {[%emt 0:08:24]} 22. Bf4 {[%emt 0:01:06]} Bd6 {[%emt 0:00:18]} 23. a4 {[%emt 0:01:15]} Bxf4 {[%emt 0:02:52]} 24. Qxf4 {[%emt 0:00:15]} Rh4 {[%emt 0:01:35]} 25. Qe3 {[%emt 0:07:10]} d6 {[%emt 0:00:08]} 26. Rg2 {[%emt 0:00:58]} Rxa4 {[%emt 0:03:24]} 27. Rxa4 {[%emt 0:00:01]} bxa4 {[%emt 0:00:01]} 28. d4 {[%emt 0:01:02]} f4 {[%emt 0:06:47]} 29. Qxf4 {[%emt 0:00:51]} Re8 {[%emt 0:00:36]} 30. Rf2 {[%emt 0:00:49]} Re1+ {[%emt 0:01:39]} 31. Kg2 {[%emt 0:00:46]} 1/2-1/2